[Event "Masters Tournament (MTO)"]
[Site "Biel, Switzerland"]
[Date "2026.07.21"]
[Round "8.5"]
[White "Savitha, Shri B"]
[Black "Kozak, Adam"]
[Result "0-1"]
[TimeControl "100+30+30sec/move"]
[WhiteTitle "-"]
[BlackTitle "-"]
[WhiteFideId "35061887"]
[BlackFideId "753246"]
[WhiteElo "2368"]
[BlackElo "2531"]

1. e4 {[%clk 01:36:08]} {[%emt 00:04:50]} e6 {[%clk 01:40:31]} {[%emt
00:00:18]} 2. d4 {[%clk 01:36:09]} {[%emt 00:00:42]} d5 {[%clk 01:40:53]}
{[%emt 00:00:08]} 3. exd5 {[%clk 01:35:21]} {[%emt 00:01:18]} exd5 {[%clk
01:41:13]} {[%emt 00:00:09]} 4. Nf3 {[%clk 01:35:47]} {[%emt 00:00:03]} Bd6
{[%clk 01:35:38]} {[%emt 00:06:05]} 5. Bd3 {[%clk 01:33:33]} {[%emt 00:02:45]}
Bg4 {[%clk 01:24:19]} {[%emt 00:11:49]} 6. O-O {[%clk 01:32:22]} {[%emt
00:01:41]} Ne7 {[%clk 01:19:00]} {[%emt 00:05:48]} 7. h3 {[%clk 01:32:46]}
{[%emt 00:00:07]} Bh5 {[%clk 01:16:48]} {[%emt 00:02:41]} 8. Re1 {[%clk
01:22:34]} {[%emt 00:10:43]} Nd7 {[%clk 01:04:17]} {[%emt 00:13:01]} 9. Bg5
{[%clk 01:21:20]} {[%emt 00:01:45]} f6 {[%clk 01:03:09]} {[%emt 00:01:37]} 10.
Bd2 {[%clk 01:17:59]} {[%emt 00:03:51]} O-O {[%clk 01:01:33]} {[%emt 00:02:05]}
11. c4 {[%clk 01:16:58]} {[%emt 00:01:32]} dxc4 {[%clk 00:59:15]} {[%emt
00:02:48]} 12. Bxc4+ {[%clk 01:17:23]} {[%emt 00:00:05]} Kh8 {[%clk 00:59:34]}
{[%emt 00:00:05]} 13. Nc3 {[%clk 01:16:10]} {[%emt 00:01:48]} Nb6 {[%clk
00:59:01]} {[%emt 00:01:03]} 14. Be6 {[%clk 01:11:25]} {[%emt 00:05:15]} c6
{[%clk 00:57:17]} {[%emt 00:02:14]} 15. Ne4 {[%clk 01:02:26]} {[%emt 00:09:29]}
Nbd5 {[%clk 00:55:04]} {[%emt 00:02:43]} 16. Nc5 {[%clk 00:51:38]} {[%emt
00:11:18]} b6 {[%clk 00:41:20]} {[%emt 00:14:15]} 17. Nb7 {[%clk 00:38:32]}
{[%emt 00:13:35]} Qc7 {[%clk 00:41:07]} {[%emt 00:00:42]} 18. Nxd6 {[%clk
00:38:04]} {[%emt 00:00:59]} Qxd6 {[%clk 00:41:29]} {[%emt 00:00:07]} 19. Qb3
{[%clk 00:37:55]} {[%emt 00:00:41]} Bf7 {[%clk 00:37:39]} {[%emt 00:04:20]} 20.
Bxf7 {[%clk 00:37:00]} {[%emt 00:01:25]} Rxf7 {[%clk 00:38:06]} {[%emt
00:00:02]} 21. Re4 {[%clk 00:35:11]} {[%emt 00:02:19]} Ng6 {[%clk 00:36:19]}
{[%emt 00:02:17]} 22. Rae1 {[%clk 00:33:13]} {[%emt 00:02:28]} Re7 {[%clk
00:35:51]} {[%emt 00:00:58]} 23. Rxe7 {[%clk 00:33:38]} {[%emt 00:00:05]} Ngxe7
{[%clk 00:36:14]} {[%emt 00:00:06]} 24. Qd3 {[%clk 00:33:25]} {[%emt 00:00:44]}
Qd7 {[%clk 00:33:09]} {[%emt 00:03:35]} 25. a3 {[%clk 00:28:09]} {[%emt
00:05:46]} Re8 {[%clk 00:32:20]} {[%emt 00:01:17]} 26. Qe4 {[%clk 00:27:16]}
{[%emt 00:01:24]} Nc7 {[%clk 00:30:12]} {[%emt 00:02:36]} 27. Qf4 {[%clk
00:22:50]} {[%emt 00:04:58]} Ned5 {[%clk 00:29:35]} {[%emt 00:01:06]} 28. Rxe8+
{[%clk 00:23:15]} {[%emt 00:00:06]} Qxe8 {[%clk 00:29:15]} {[%emt 00:00:49]} 29.
Qd6 {[%clk 00:22:31]} {[%emt 00:01:14]} Nb5 {[%clk 00:24:11]} {[%emt 00:05:34]}
30. Qg3 {[%clk 00:22:43]} {[%emt 00:00:18]} Nbc7 {[%clk 00:24:01]} {[%emt
00:00:40]} 31. Qd6 {[%clk 00:21:44]} {[%emt 00:01:29]} Kg8 {[%clk 00:21:31]}
{[%emt 00:03:00]} 32. a4 {[%clk 00:18:06]} {[%emt 00:04:09]} Qe6 {[%clk
00:20:27]} {[%emt 00:01:33]} 33. Qd8+ {[%clk 00:17:58]} {[%emt 00:00:38]} Qe8
{[%clk 00:20:47]} {[%emt 00:00:10]} 34. Qd6 {[%clk 00:18:10]} {[%emt 00:00:18]}
a5 {[%clk 00:19:48]} {[%emt 00:01:28]} 35. h4 {[%clk 00:14:17]} {[%emt
00:04:24]} h5 {[%clk 00:18:32]} {[%emt 00:01:45]} 36. Bc1 {[%clk 00:10:38]}
{[%emt 00:04:10]} Kf7 {[%clk 00:16:14]} {[%emt 00:02:48]} 37. Bd2 {[%clk
00:10:08]} {[%emt 00:01:00]} Qe6 {[%clk 00:10:20]} {[%emt 00:06:24]} 38. Qd8
{[%clk 00:09:29]} {[%emt 00:01:09]} Ne8 {[%clk 00:10:20]} {[%emt 00:00:29]} 39.
Bc1 {[%clk 00:05:05]} {[%emt 00:04:54]} Nd6 {[%clk 00:08:34]} {[%emt 00:02:16]}
40. b3 {[%clk 00:03:05]} {[%emt 00:02:30]} Nf5 {[%clk 00:02:50]} {[%emt
00:06:13]} 41. Ba3 {[%clk 00:28:36]} {[%emt 00:05:00]} Kg6 {[%clk 00:32:18]}
{[%emt 00:01:02]} 42. Qb8 {[%clk 00:17:54]} {[%emt 00:11:12]} Kh7 {[%clk
00:29:21]} {[%emt 00:03:26]} 43. Qb7 {[%clk 00:16:34]} {[%emt 00:01:51]} Nxh4
{[%clk 00:26:47]} {[%emt 00:03:03]} 44. Bf8 {[%clk 00:12:19]} {[%emt 00:04:45]}
Nxf3+ {[%clk 00:25:40]} {[%emt 00:01:37]} 45. gxf3 {[%clk 00:12:44]} {[%emt
00:00:06]} Qe1+ {[%clk 00:26:02]} {[%emt 00:00:08]} 0-1

[Event "Masters Tournament (MTO)"]
[Site "Biel, Switzerland"]
[Date "2026.07.21"]
[Round "8.6"]
[White "Shukhman, Anna"]
[Black "Vihaan, Dumir"]
[Result "0-1"]
[TimeControl "100+30+30sec/move"]
[WhiteTitle "-"]
[BlackTitle "-"]
[WhiteFideId "54180058"]
[BlackFideId "25901010"]
[WhiteElo "2443"]
[BlackElo "2132"]

1. e4 {[%clk 01:40:58]} d6 {[%clk 01:40:55]} {[%emt 00:00:06]} 2. d4 {[%clk
01:41:22]} {[%emt 00:00:07]} Nf6 {[%clk 01:41:20]} {[%emt 00:00:03]} 3. Nc3
{[%clk 01:41:50]} {[%emt 00:00:03]} e5 {[%clk 01:41:43]} {[%emt 00:00:07]} 4.
Nf3 {[%clk 01:42:09]} {[%emt 00:00:09]} Nbd7 {[%clk 01:42:07]} {[%emt
00:00:06]} 5. h3 {[%clk 01:42:20]} {[%emt 00:00:19]} Be7 {[%clk 01:42:26]}
{[%emt 00:00:11]} 6. g4 {[%clk 01:42:10]} {[%emt 00:00:40]} h6 {[%clk
01:42:48]} {[%emt 00:00:07]} 7. Rg1 {[%clk 01:39:50]} {[%emt 00:02:51]} c6
{[%clk 01:43:09]} {[%emt 00:00:10]} 8. a4 {[%clk 01:40:17]} {[%emt 00:00:03]}
Qa5 {[%clk 01:43:30]} {[%emt 00:00:08]} 9. Bd2 {[%clk 01:38:05]} {[%emt
00:02:42]} exd4 {[%clk 01:43:53]} {[%emt 00:00:08]} 10. Nxd4 {[%clk 01:38:33]}
{[%emt 00:00:02]} Qe5 {[%clk 01:44:13]} {[%emt 00:00:09]} 11. Nf3 {[%clk
01:27:28]} {[%emt 00:11:35]} Qe6 {[%clk 01:43:20]} {[%emt 00:01:24]} 12. Nd4
{[%clk 01:19:59]} {[%emt 00:07:59]} Qe5 {[%clk 01:43:49]} {[%emt 00:00:01]} 13.
Be3 {[%clk 01:20:25]} {[%emt 00:00:04]} Nxe4 {[%clk 01:44:01]} {[%emt
00:00:18]} 14. Nxe4 {[%clk 01:20:52]} {[%emt 00:00:04]} Qxe4 {[%clk 01:44:24]}
{[%emt 00:00:08]} 15. Bg2 {[%clk 01:10:42]} {[%emt 00:10:40]} Qe5 {[%clk
01:44:32]} {[%emt 00:00:20]} 16. Nf5 {[%clk 01:10:03]} {[%emt 00:01:10]} O-O
{[%clk 01:12:10]} {[%emt 00:32:52]} 17. f4 {[%clk 01:09:36]} {[%emt 00:00:56]}
Qe6 {[%clk 01:07:16]} {[%emt 00:05:21]} 18. Kf2 {[%clk 01:05:00]} {[%emt
00:05:11]} Bf6 {[%clk 00:49:50]} {[%emt 00:17:55]} 19. Re1 {[%clk 00:37:25]}
{[%emt 00:28:04]} Bxb2 {[%clk 00:27:59]} {[%emt 00:22:22]} 20. Rb1 {[%clk
00:37:24]} {[%emt 00:00:31]} Bc3 {[%clk 00:27:05]} {[%emt 00:01:18]} 21. Re2
{[%clk 00:37:39]} {[%emt 00:00:21]} Qf6 {[%clk 00:25:38]} {[%emt 00:01:55]} 22.
Nxd6 {[%clk 00:29:58]} {[%emt 00:08:13]} Nb6 {[%clk 00:23:01]} {[%emt
00:03:07]} 23. Ne4 {[%clk 00:20:23]} {[%emt 00:10:06]} Qh4+ {[%clk 00:20:59]}
{[%emt 00:02:31]} 24. Kg1 {[%clk 00:20:50]} {[%emt 00:00:03]} Rd8 {[%clk
00:19:55]} {[%emt 00:01:34]} 25. Bf2 {[%clk 00:19:32]} {[%emt 00:01:48]} Rxd1+
{[%clk 00:16:40]} {[%emt 00:03:45]} 26. Rxd1 {[%clk 00:20:01]} {[%emt
00:00:02]} Bxg4 {[%clk 00:15:50]} {[%emt 00:01:19]} 27. Bxh4 {[%clk 00:15:33]}
{[%emt 00:04:58]} Bxe2 {[%clk 00:16:18]} {[%emt 00:00:02]} 28. Nxc3 {[%clk
00:16:00]} {[%emt 00:00:03]} Bxd1 {[%clk 00:16:40]} {[%emt 00:00:09]} 29. Nxd1
{[%clk 00:16:29]} Nxa4 {[%clk 00:16:51]} {[%emt 00:00:19]} 30. Kf1 {[%clk
00:16:57]} {[%emt 00:00:02]} Nc5 {[%clk 00:12:02]} {[%emt 00:05:16]} 31. Bf2
{[%clk 00:16:25]} {[%emt 00:01:04]} Ne6 {[%clk 00:12:25]} {[%emt 00:00:08]} 32.
Be3 {[%clk 00:16:52]} {[%emt 00:00:03]} g5 {[%clk 00:12:03]} {[%emt 00:00:51]}
33. fxg5 {[%clk 00:10:38]} {[%emt 00:06:44]} hxg5 {[%clk 00:12:31]} {[%emt
00:00:02]} 34. Nc3 {[%clk 00:11:04]} {[%emt 00:00:04]} Nf4 {[%clk 00:10:19]}
{[%emt 00:02:42]} 35. Ne4 {[%clk 00:05:41]} {[%emt 00:05:53]} Nxg2 {[%clk
00:06:06]} {[%emt 00:04:43]} 36. Kxg2 {[%clk 00:05:55]} {[%emt 00:00:16]} a5
{[%clk 00:06:19]} {[%emt 00:00:17]} 37. Bxg5 {[%clk 00:02:10]} {[%emt
00:04:16]} a4 {[%clk 00:05:37]} {[%emt 00:01:12]} 38. Bf6 {[%clk 00:02:33]}
{[%emt 00:00:07]} a3 {[%clk 00:05:18]} {[%emt 00:00:50]} 39. Nc5 {[%clk
00:02:48]} {[%emt 00:00:15]} a2 {[%clk 00:01:41]} {[%emt 00:04:07]} 40. Nb3
{[%clk 00:01:52]} {[%emt 00:01:26]} c5 {[%clk 00:01:30]} {[%emt 00:00:41]} 41.
Nxc5 {[%clk 00:24:02]} {[%emt 00:08:19]} a1=Q {[%clk 00:29:48]} {[%emt
00:02:12]} 42. Bxa1 {[%clk 00:24:31]} {[%emt 00:00:01]} Rxa1 {[%clk 00:30:09]}
{[%emt 00:00:08]} 43. Nxb7 {[%clk 00:25:00]} {[%emt 00:00:02]} Rc1 {[%clk
00:30:27]} {[%emt 00:00:12]} 44. Nd6 {[%clk 00:25:27]} {[%emt 00:00:03]} Rxc2+
{[%clk 00:30:46]} {[%emt 00:00:11]} 45. Kg3 {[%clk 00:25:56]} Rc5 {[%clk
00:29:20]} {[%emt 00:01:53]} 46. Kf4 {[%clk 00:22:20]} {[%emt 00:04:10]} Kg7
{[%clk 00:28:59]} {[%emt 00:00:46]} 47. Ne4 {[%clk 00:20:50]} {[%emt 00:02:06]}
Ra5 {[%clk 00:29:08]} {[%emt 00:00:20]} 48. Ng5 {[%clk 00:21:03]} {[%emt
00:00:18]} Kg6 {[%clk 00:29:15]} {[%emt 00:00:21]} 49. Nf3 {[%clk 00:21:30]}
{[%emt 00:00:04]} Ra4+ {[%clk 00:26:27]} {[%emt 00:03:18]} 50. Ke3 {[%clk
00:19:48]} {[%emt 00:02:12]} f6 {[%clk 00:19:19]} {[%emt 00:07:38]} 51. Kf2
{[%clk 00:18:45]} {[%emt 00:01:33]} Kf5 {[%clk 00:19:04]} {[%emt 00:00:43]} 52.
Ne1 {[%clk 00:19:05]} {[%emt 00:00:13]} Ra3 {[%clk 00:19:18]} {[%emt 00:00:16]}
53. h4 {[%clk 00:18:43]} {[%emt 00:00:53]} Kg4 {[%clk 00:19:33]} {[%emt
00:00:14]} 54. Ng2 {[%clk 00:19:01]} {[%emt 00:00:12]} Ra2+ {[%clk 00:19:58]}
{[%emt 00:00:05]} 55. Kf1 {[%clk 00:19:30]} Kf3 {[%clk 00:20:04]} {[%emt
00:00:21]} 56. Ne1+ {[%clk 00:19:57]} {[%emt 00:00:05]} Kg3 {[%clk 00:20:16]}
{[%emt 00:00:18]} 57. h5 {[%clk 00:20:21]} {[%emt 00:00:07]} Rh2 {[%clk
00:20:25]} {[%emt 00:00:20]} 0-1

[Event "Masters Tournament (MTO)"]
[Site "Biel, Switzerland"]
[Date "2026.07.21"]
[Round "8.7"]
[White "Yasaswi, Krishna Bommi"]
[Black "Dong, Hongfu"]
[Result "0-1"]
[TimeControl "100+30+30sec/move"]
[WhiteTitle "-"]
[BlackTitle "-"]
[WhiteFideId "33368783"]
[BlackFideId "8626960"]
[WhiteElo "2085"]
[BlackElo "2353"]

1. d4 {[%clk 01:40:57]} {[%emt 00:00:03]} Nf6 {[%clk 01:38:13]} {[%emt
00:02:47]} 2. Nf3 {[%clk 01:41:21]} {[%emt 00:00:06]} b6 {[%clk 01:38:31]}
{[%emt 00:00:13]} 3. Bf4 {[%clk 01:41:44]} {[%emt 00:00:06]} Bb7 {[%clk
01:38:57]} {[%emt 00:00:05]} 4. e3 {[%clk 01:42:07]} {[%emt 00:00:07]} Nh5
{[%clk 01:39:20]} {[%emt 00:00:07]} 5. Bg3 {[%clk 01:39:22]} {[%emt 00:03:14]}
Nxg3 {[%clk 01:36:50]} {[%emt 00:03:01]} 6. hxg3 {[%clk 01:39:45]} {[%emt
00:00:07]} g6 {[%clk 01:36:56]} {[%emt 00:00:24]} 7. Bd3 {[%clk 01:38:40]}
{[%emt 00:01:34]} Bg7 {[%clk 01:36:56]} {[%emt 00:00:31]} 8. Nbd2 {[%clk
01:38:09]} {[%emt 00:01:00]} c5 {[%clk 01:33:47]} {[%emt 00:03:40]} 9. c3
{[%clk 01:37:53]} {[%emt 00:00:46]} d6 {[%clk 01:15:37]} {[%emt 00:18:40]} 10.
Qe2 {[%clk 01:29:08]} {[%emt 00:09:14]} Nd7 {[%clk 01:15:00]} {[%emt 00:01:08]}
11. O-O {[%clk 01:27:51]} {[%emt 00:01:47]} O-O {[%clk 01:12:02]} {[%emt
00:03:29]} 12. a4 {[%clk 01:25:39]} {[%emt 00:02:42]} a6 {[%clk 01:11:31]}
{[%emt 00:01:01]} 13. e4 {[%clk 01:20:11]} {[%emt 00:05:58]} Qc7 {[%clk
01:10:47]} {[%emt 00:01:14]} 14. Rfd1 {[%clk 01:15:52]} {[%emt 00:04:49]} e6
{[%clk 01:08:08]} {[%emt 00:03:09]} 15. Nf1 {[%clk 01:12:12]} {[%emt 00:04:10]}
Nf6 {[%clk 01:07:28]} {[%emt 00:01:10]} 16. N3d2 {[%clk 01:07:01]} {[%emt
00:05:40]} Rfd8 {[%clk 01:03:03]} {[%emt 00:04:56]} 17. e5 {[%clk 01:02:12]}
{[%emt 00:05:19]} Nd7 {[%clk 00:58:08]} {[%emt 00:05:25]} 18. exd6 {[%clk
00:57:11]} {[%emt 00:05:30]} Qxd6 {[%clk 00:58:30]} {[%emt 00:00:08]} 19. Be4
{[%clk 00:54:32]} {[%emt 00:03:09]} Qc7 {[%clk 00:54:37]} {[%emt 00:04:24]} 20.
Bxb7 {[%clk 00:51:31]} {[%emt 00:03:31]} Qxb7 {[%clk 00:55:01]} {[%emt
00:00:06]} 21. dxc5 {[%clk 00:44:19]} {[%emt 00:07:42]} Nxc5 {[%clk 00:55:00]}
{[%emt 00:00:30]} 22. Nc4 {[%clk 00:43:32]} {[%emt 00:01:18]} Qc6 {[%clk
00:53:09]} {[%emt 00:02:21]} 23. a5 {[%clk 00:38:25]} {[%emt 00:05:37]} b5
{[%clk 00:51:04]} {[%emt 00:02:35]} 24. Nb6 {[%clk 00:34:59]} {[%emt 00:03:56]}
Rab8 {[%clk 00:51:03]} {[%emt 00:00:30]} 25. Rxd8+ {[%clk 00:33:02]} {[%emt
00:02:27]} Rxd8 {[%clk 00:51:24]} {[%emt 00:00:10]} 26. Rd1 {[%clk 00:32:49]}
{[%emt 00:00:43]} Bf6 {[%clk 00:46:30]} {[%emt 00:05:24]} 27. Rxd8+ {[%clk
00:16:08]} {[%emt 00:17:10]} Bxd8 {[%clk 00:46:57]} {[%emt 00:00:03]} 28. Qf3
{[%clk 00:13:14]} {[%emt 00:03:24]} Qxf3 {[%clk 00:43:10]} {[%emt 00:04:18]} 29.
gxf3 {[%clk 00:13:39]} {[%emt 00:00:05]} Na4 {[%clk 00:38:08]} {[%emt
00:05:32]} 30. Nxa4 {[%clk 00:11:24]} {[%emt 00:02:45]} bxa4 {[%clk 00:38:34]}
{[%emt 00:00:04]} 31. Nd2 {[%clk 00:09:43]} {[%emt 00:02:11]} Bxa5 {[%clk
00:38:55]} {[%emt 00:00:09]} 32. Nc4 {[%clk 00:08:28]} {[%emt 00:01:44]} Bc7
{[%clk 00:38:52]} {[%emt 00:00:33]} 33. f4 {[%clk 00:07:06]} {[%emt 00:01:53]}
f5 {[%clk 00:26:03]} {[%emt 00:13:19]} 34. Kg2 {[%clk 00:06:58]} {[%emt
00:00:37]} Kf7 {[%clk 00:26:10]} {[%emt 00:00:23]} 35. Kf3 {[%clk 00:06:36]}
{[%emt 00:00:51]} Kf6 {[%clk 00:26:20]} {[%emt 00:00:21]} 36. Ke3 {[%clk
00:04:28]} {[%emt 00:02:39]} Bb8 {[%clk 00:21:03]} {[%emt 00:05:48]} 37. Ke2
{[%clk 00:02:46]} {[%emt 00:02:11]} Ba7 {[%clk 00:20:44]} {[%emt 00:00:49]} 38.
Ne5 {[%clk 00:02:03]} {[%emt 00:01:12]} Kg7 {[%clk 00:19:12]} {[%emt 00:02:02]}
39. Nd7 {[%clk 00:01:32]} {[%emt 00:01:02]} Kf7 {[%clk 00:18:48]} {[%emt
00:00:54]} 40. Ne5+ {[%clk 00:01:28]} {[%emt 00:00:33]} Ke8 {[%clk 00:19:17]}
{[%emt 00:00:01]} 41. Kf3 {[%clk 00:24:42]} {[%emt 00:07:16]} Bc5 {[%clk
00:49:13]} {[%emt 00:00:34]} 42. Nd3 {[%clk 00:17:18]} {[%emt 00:07:54]} a3
{[%clk 00:48:07]} {[%emt 00:01:37]} 43. bxa3 {[%clk 00:17:37]} {[%emt
00:00:11]} Bxa3 {[%clk 00:48:34]} {[%emt 00:00:03]} 44. Ke3 {[%clk 00:16:28]}
{[%emt 00:01:38]} a5 {[%clk 00:48:15]} {[%emt 00:00:49]} 45. Kd4 {[%clk
00:13:33]} {[%emt 00:03:25]} a4 {[%clk 00:47:41]} {[%emt 00:01:05]} 46. Kc4
{[%clk 00:12:37]} {[%emt 00:01:26]} Bd6 {[%clk 00:47:42]} {[%emt 00:00:28]} 47.
Kb5 {[%clk 00:09:42]} {[%emt 00:03:26]} a3 {[%clk 00:47:59]} {[%emt 00:00:12]}
48. Nc1 {[%clk 00:10:09]} {[%emt 00:00:04]} h5 {[%clk 00:48:24]} {[%emt
00:00:05]} 49. c4 {[%clk 00:08:14]} {[%emt 00:02:25]} Bxf4 {[%clk 00:48:22]}
{[%emt 00:00:31]} 50. Na2 {[%clk 00:07:29]} {[%emt 00:01:16]} Bxg3 {[%clk
00:48:24]} {[%emt 00:00:28]} 51. fxg3 {[%clk 00:07:42]} {[%emt 00:00:18]} f4
{[%clk 00:48:50]} {[%emt 00:00:03]} 52. gxf4 {[%clk 00:07:53]} {[%emt
00:00:19]} h4 {[%clk 00:49:16]} {[%emt 00:00:03]} 53. c5 {[%clk 00:07:48]}
{[%emt 00:00:35]} h3 {[%clk 00:49:43]} {[%emt 00:00:04]} 54. c6 {[%clk
00:08:06]} {[%emt 00:00:12]} h2 {[%clk 00:50:09]} {[%emt 00:00:04]} 55. c7
{[%clk 00:08:06]} {[%emt 00:00:30]} Kd7 {[%clk 00:50:36]} {[%emt 00:00:03]} 0-1

[Event "Masters Tournament (MTO)"]
[Site "Biel, Switzerland"]
[Date "2026.07.21"]
[Round "8.8"]
[White "Elmi, Saad Abobaker"]
[Black "Dai, Wenzhi"]
[Result "1-0"]
[TimeControl "100+30+30sec/move"]
[WhiteTitle "-"]
[BlackTitle "-"]
[WhiteFideId "1553259"]
[BlackFideId "8608369"]
[WhiteElo "2399"]
[BlackElo "2126"]

1. d4 {[%clk 01:40:29]} {[%emt 00:00:30]} Nf6 {[%clk 01:40:53]} {[%emt
00:00:07]} 2. c4 {[%clk 01:40:41]} {[%emt 00:00:18]} e6 {[%clk 01:41:13]}
{[%emt 00:00:09]} 3. Nf3 {[%clk 01:40:46]} {[%emt 00:00:26]} d5 {[%clk
01:40:44]} {[%emt 00:00:59]} 4. Nc3 {[%clk 01:41:06]} {[%emt 00:00:10]} Be7
{[%clk 01:40:51]} {[%emt 00:00:23]} 5. Bg5 {[%clk 01:41:02]} {[%emt 00:00:34]}
O-O {[%clk 01:40:46]} {[%emt 00:00:34]} 6. e3 {[%clk 01:41:16]} {[%emt
00:00:16]} h6 {[%clk 01:40:42]} {[%emt 00:00:34]} 7. Bh4 {[%clk 01:40:17]}
{[%emt 00:01:29]} b6 {[%clk 01:37:11]} {[%emt 00:04:02]} 8. cxd5 {[%clk
01:38:09]} {[%emt 00:02:38]} exd5 {[%clk 01:34:58]} {[%emt 00:02:43]} 9. Bd3
{[%clk 01:36:51]} {[%emt 00:01:48]} Bb7 {[%clk 01:34:10]} {[%emt 00:01:17]} 10.
O-O {[%clk 01:36:53]} {[%emt 00:00:29]} Ne4 {[%clk 01:28:57]} {[%emt 00:05:43]}
11. Bxe7 {[%clk 01:28:35]} {[%emt 00:08:47]} Qxe7 {[%clk 01:29:21]} {[%emt
00:00:06]} 12. Rc1 {[%clk 01:26:55]} {[%emt 00:02:11]} Nd7 {[%clk 01:23:55]}
{[%emt 00:05:56]} 13. Qa4 {[%clk 01:22:17]} {[%emt 00:05:07]} c5 {[%clk
01:16:50]} {[%emt 00:07:35]} 14. Qa3 {[%clk 01:17:09]} {[%emt 00:05:39]} Rfc8
{[%clk 01:02:13]} {[%emt 00:15:07]} 15. Rfd1 {[%clk 01:13:11]} {[%emt
00:04:27]} Nxc3 {[%clk 00:51:35]} {[%emt 00:11:09]} 16. Rxc3 {[%clk 01:13:22]}
{[%emt 00:00:18]} Qe6 {[%clk 00:48:26]} {[%emt 00:03:40]} 17. dxc5 {[%clk
01:11:08]} {[%emt 00:02:44]} bxc5 {[%clk 00:45:35]} {[%emt 00:03:21]} 18. Bb5
{[%clk 01:07:36]} {[%emt 00:04:01]} Bc6 {[%clk 00:45:14]} {[%emt 00:00:52]} 19.
Ba6 {[%clk 01:07:39]} {[%emt 00:00:27]} Rcb8 {[%clk 00:44:05]} {[%emt
00:01:39]} 20. Rdc1 {[%clk 01:04:05]} {[%emt 00:04:04]} Bb5 {[%clk 00:43:38]}
{[%emt 00:00:57]} 21. Bxb5 {[%clk 01:03:49]} {[%emt 00:00:46]} Rxb5 {[%clk
00:44:06]} {[%emt 00:00:01]} 22. b3 {[%clk 01:03:02]} {[%emt 00:01:17]} a5
{[%clk 00:43:29]} {[%emt 00:01:07]} 23. h3 {[%clk 00:54:21]} {[%emt 00:09:11]}
a4 {[%clk 00:40:49]} {[%emt 00:03:11]} 24. Rd1 {[%clk 00:50:40]} {[%emt
00:04:10]} Ra6 {[%clk 00:35:20]} {[%emt 00:06:00]} 25. Qc1 {[%clk 00:41:38]}
{[%emt 00:09:31]} axb3 {[%clk 00:33:15]} {[%emt 00:02:36]} 26. axb3 {[%clk
00:42:02]} {[%emt 00:00:06]} Rab6 {[%clk 00:32:06]} {[%emt 00:01:39]} 27. Qc2
{[%clk 00:41:21]} {[%emt 00:01:10]} Rb8 {[%clk 00:30:41]} {[%emt 00:01:56]} 28.
Kh2 {[%clk 00:34:28]} {[%emt 00:07:22]} Qd6+ {[%clk 00:30:18]} {[%emt
00:00:54]} 29. g3 {[%clk 00:34:30]} {[%emt 00:00:27]} Qe6 {[%clk 00:26:58]}
{[%emt 00:03:50]} 30. Kg2 {[%clk 00:34:19]} {[%emt 00:00:41]} g6 {[%clk
00:22:01]} {[%emt 00:05:28]} 31. Ne1 {[%clk 00:27:16]} {[%emt 00:07:32]} Nf6
{[%clk 00:16:28]} {[%emt 00:06:03]} 32. Nd3 {[%clk 00:21:57]} {[%emt 00:05:49]}
d4 {[%clk 00:15:10]} {[%emt 00:01:49]} 33. exd4 {[%clk 00:21:26]} {[%emt
00:01:02]} cxd4 {[%clk 00:13:38]} {[%emt 00:02:02]} 34. Rc6 {[%clk 00:14:34]}
{[%emt 00:07:21]} Qd5+ {[%clk 00:13:32]} {[%emt 00:00:35]} 35. Kg1 {[%clk
00:14:10]} {[%emt 00:00:54]} Kg7 {[%clk 00:13:20]} {[%emt 00:00:43]} 36. Nf4
{[%clk 00:09:31]} {[%emt 00:05:09]} Qxb3 {[%clk 00:13:12]} {[%emt 00:00:38]} 37.
Ne6+ {[%clk 00:08:19]} {[%emt 00:01:41]} Kh7 {[%clk 00:08:07]} {[%emt
00:05:36]} 38. Qd2 {[%clk 00:06:55]} {[%emt 00:01:55]} Ne4 {[%clk 00:03:00]}
{[%emt 00:05:37]} 39. Qxd4 {[%clk 00:06:31]} {[%emt 00:00:54]} Qxd1+ {[%clk
00:03:24]} {[%emt 00:00:05]} 40. Qxd1 {[%clk 00:06:37]} {[%emt 00:00:23]} Rb1
{[%clk 00:03:50]} {[%emt 00:00:04]} 41. Rc1 {[%clk 00:06:37]} {[%emt 00:00:31]}
Nc3 {[%clk 00:03:56]} {[%emt 00:00:24]} 42. Qd7 {[%clk 00:06:40]} {[%emt
00:00:27]} Rxc1+ {[%clk 00:04:16]} {[%emt 00:00:09]} 43. Kg2 {[%clk 00:06:55]}
{[%emt 00:00:15]} Kg8 {[%clk 00:21:24]} {[%emt 00:13:23]} 44. Nd8 {[%clk
00:37:13]} {[%emt 00:00:11]} Rcb1 {[%emt 00:11:39]} 45. Qxf7+ {[%clk 00:37:02]}
Kh8 {[%clk 00:11:17]} {[%emt 00:00:10]} 46. Ne6 {[%clk 00:37:10]} {[%emt
00:00:21]} R1b7 {[%clk 00:11:18]} {[%emt 00:00:30]} 47. Qf6+ {[%clk 00:37:29]}
{[%emt 00:00:09]} Kh7 {[%clk 00:11:39]} {[%emt 00:00:09]} 48. Qxc3 {[%clk
00:37:49]} {[%emt 00:00:10]} Rf7 {[%clk 00:11:48]} {[%emt 00:00:22]} 49. h4
{[%clk 00:37:55]} {[%emt 00:00:24]} Re8 {[%clk 00:12:10]} {[%emt 00:00:09]} 50.
Nf4 {[%clk 00:38:07]} {[%emt 00:00:16]} h5 {[%clk 00:11:30]} {[%emt 00:01:11]}
51. Nxg6 {[%clk 00:38:17]} {[%emt 00:00:19]} 1-0